bitfinex-derivatives/quotes_SOLF0:USTF0_20260114
["timestamp","ask_amount","ask_price","bid_price","bid_amount"]
[1768392368626,3.17711403,144.06,144.0,9.53256924]
[1768392368829,11.15672326,144.08,144.0,3.27966924]
[1768392371336,1.72990923,144.07,144.01,3.27966924]
[1768392371531,9.42681403,144.08,144.01,3.27966924]
[1768392371728,3.17711403,144.08,144.01,3.27966924]
[1768392371938,9.42611403,144.1,144.02,3.27966924]
[1768392372433,6.249,144.1,144.04,3.27966924]
[1768392372730,3.17711403,144.12,144.06,3.27966924]
[1768392373126,4.90702326,144.12,144.06,3.27966924]
[1768392373330,6.2484,144.11,144.06,3.27966924]
[1768392373526,3.17711403,144.09,144.01,3.27966924]
[1768392374930,0.0470978,144.06,144.02,5.00957847]
[1768392375132,9.42641403,144.09,144.03,3.27966924]
[1768392375924,6.2497,144.08,144.01,1.72990923]
[1768392376125,6.2497,144.08,144.01,5.00957847]
[1768392377040,6.2497,144.08,144.02,3.27966924]
[1768392378340,3.17711403,144.06,144.0,3.27966924]
[1768392379939,9.42761403,144.06,144.0,3.27966924]
[1768392380340,4.73030859,144.08,144.0,5.00957847]
[1768392381042,10.98020859,144.08,144.0,5.00957847]
[1768392381642,9.25029936,144.08,144.0,5.00957847]
[1768392381841,3.00039936,144.07,144.0,5.00957847]
[1768392382845,3.00039936,144.07,144.0,11.26257847]
[1768392383241,3.00039936,144.07,144.01,3.282095]
[1768392383436,6.2499,144.08,144.01,3.282095]
[1768392383939,9.25029936,144.08,144.01,3.282095]
[1768392385445,9.25029936,144.08,144.01,5.01200423]
[1768392386046,3.00039936,144.06,144.0,6.253]
[1768392387038,3.00039936,144.08,144.01,3.282095]
[1768392387435,9.25049936,144.07,144.0,1.72990923]
[1768392387640,10.98040859,144.07,144.0,1.72990923]
[1768392388046,9.25049936,144.07,144.0,11.26500423]
[1768392388446,3.00039936,144.07,144.0,11.26500423]
[1768392389339,3.00039936,144.07,144.0,9.535095]
[1768392389640,9.25039936,144.07,144.0,9.535095]
[1768392391660,6.2506,144.06,144.0,3.282095]
[1768392392556,9.25099936,144.06,144.0,3.282095]
[1768392392758,9.25099936,144.06,143.97,2.70124662]
[1768392393058,9.25099936,144.06,143.98,3.282095]
[1768392393458,100.20669936,144.1,144.0,3.282095]
[1768392393767,3.00039936,144.1,144.0,3.282095]
[1768392394060,6.2496,144.08,144.0,3.282095]
[1768392394263,3.00039936,144.1,144.0,3.282095]
[1768392394851,0.04721055,144.06,144.0,9.535195]
[1768392395059,0.04721055,144.06,144.04,0.05090521]
[1768392400267,2.99665258,144.09,144.04,0.05090521]
[1768392401762,9.24585258,144.09,144.04,0.05090521]
[1768392401962,2.99665258,144.08,144.04,0.05090521]
[1768392402766,6.2492,144.09,144.04,0.05090521]
[1768392404462,9.24585258,144.09,144.04,0.05090521]
[1768392406765,2.99665258,144.07,144.01,6.2526]
[1768392407358,2.99665258,144.07,144.0,3.08657482]
[1768392408863,2.99665258,144.07,144.01,9.33897482]
[1768392409365,2.99665258,144.07,144.02,0.04513181]
[1768392410172,2.99665258,144.09,144.02,3.13170663]
[1768392410669,2.99665258,144.09,144.02,3.08657482]
[1768392411070,2.99665258,144.09,144.04,0.05147164]
[1768392411767,9.24595258,144.09,144.04,0.05147164]
[1768392412473,2.99665258,144.09,144.04,0.05147164]
[1768392413259,2.99665258,144.12,144.04,3.13804646]
[1768392413865,2.99665258,144.12,144.06,9.33697482]
[1768392414065,104.55255777,144.14,144.07,3.08657482]
[1768392414270,107.54921035,144.14,144.07,3.08657482]
[1768392415474,107.54921035,144.14,144.09,0.04582614]
[1768392416175,2.99665258,144.13,144.09,0.04582614]
[1768392418970,9.24415258,144.13,144.09,0.04582614]
[1768392420475,2.99665258,144.13,144.09,0.04582614]
[1768392420877,2.99665258,144.13,144.05,3.08657482]
[1768392421077,9.24505258,144.11,144.03,3.08657482]
[1768392421273,2.99665258,144.1,144.03,3.08657482]
[1768392421579,2.99665258,144.1,144.01,3.08657482]
[1768392422172,2.70124662,144.13,144.01,6.2522]
[1768392422173,2.99665258,144.09,144.01,6.2522]
[1768392422382,2.99665258,144.08,144.01,6.2522]
[1768392422579,2.99665258,144.08,144.01,9.33877482]
[1768392423170,2.99665258,144.07,143.99,9.33967482]
[1768392423378,2.99665258,144.07,144.0,3.08657482]
[1768392423783,2.99665258,144.09,144.02,3.08657482]
[1768392423976,2.99665258,144.09,144.0,3.08657482]
[1768392424578,9.24635258,144.08,144.0,9.33927482]
[1768392424879,0.05027716,144.06,144.03,0.05106566]
[1768392427375,2.99665258,144.08,144.03,0.05106566]
[1768392427575,3.29297667,144.1,144.03,0.05106566]
[1768392428684,9.54187667,144.1,144.03,0.05106566]
[1768392428984,9.54187667,144.1,144.03,6.30276566]
[1768392429185,84.93297667,144.12,144.04,3.19983997]
[1768392429870,84.93297667,144.12,144.02,2.70124662]
[1768392429871,3.29297667,144.11,144.03,6.2515]
[1768392430071,3.29297667,144.11,144.02,3.19983997]
[1768392430472,6.249,144.1,144.02,9.45193997]
[1768392430677,3.29297667,144.09,144.02,9.45193997]
[1768392430890,3.29297667,144.09,144.02,3.19983997]
[1768392431680,3.29297667,144.11,144.03,3.19983997]
[1768392431879,3.29297667,144.09,144.0,3.19983997]
[1768392432382,6.2506,144.06,144.0,3.19983997]
[1768392432687,3.29297667,144.05,143.97,3.19983997]
[1768392433887,3.29297667,144.05,143.98,3.19983997]
[1768392434987,101.11683174,144.1,144.01,3.19983997]
[1768392434988,6.2495,144.09,144.01,3.19983997]
[1768392435491,6.2495,144.09,144.02,6.2522]
[1768392435987,6.2495,144.09,144.02,9.45203997]
[1768392436989,84.95297667,144.1,144.02,9.45203997]
[1768392437383,84.95297667,144.1,144.03,3.19983997]
[1768392438900,84.95297667,144.1,144.04,6.2513]
[1768392440986,84.95297667,144.1,144.05,6.2509]
[1768392441186,3.21939063,144.13,144.05,3.18461446]
[1768392441896,3.21939063,144.12,144.05,3.18461446]
[1768392442588,98.28545777,144.14,144.05,3.18461446]
[1768392442790,98.28545777,144.14,144.02,99.95634662]
[1768392442791,101.5048484,144.14,144.07,9.43461446]
[1768392443193,101.5048484,144.14,144.07,3.18461446]
[1768392444393,98.28545777,144.14,144.07,3.18461446]
[1768392444686,3.21939063,144.2,144.11,3.18461446]
[1768392444886,3.21939063,144.23,144.13,3.18461446]
[1768392445094,84.85939063,144.22,144.13,3.18461446]
[1768392445292,3.21939063,144.21,144.13,3.18461446]
[1768392446694,9.46349063,144.21,144.13,9.43191446]
[1768392447687,3.21939063,144.21,144.14,6.2468]
[1768392448495,3.21939063,144.22,144.15,3.18461446]
[1768392448993,9.46309063,144.22,144.15,3.18461446]
[1768392449193,3.21939063,144.21,144.12,3.18461446]
[1768392449594,3.21939063,144.21,144.14,6.2467]
[1768392451296,3.21939063,144.21,144.14,7.97181566]
[1768392451496,3.21939063,144.21,144.15,6.2464]
[1768392452501,3.21939063,144.21,144.14,4.90973012]
[1768392453602,3.21939063,144.21,144.15,6.2463]
[1768392456809,81.64,144.23,144.16,10.98642669]
[1768392458106,3.26935591,144.22,144.14,10.98702669]
[1768392458309,3.26935591,144.22,144.14,4.74032669]
[1768392459913,3.26935591,144.22,144.15,6.2464]
[1768392460912,3.26935591,144.22,144.15,9.26161103]
[1768392461108,1.72511566,144.21,144.15,3.01521103]
[1768392461308,4.99447157,144.21,144.15,3.01521103]
[1768392461904,3.26935591,144.21,144.15,3.01521103]
[1768392462102,4.99447157,144.21,144.15,3.01521103]
[1768392462502,3.26935591,144.21,144.15,9.26171103]
[1768392462709,1.72511566,144.22,144.15,9.26171103]
[1768392463111,11.23807157,144.22,144.15,9.26171103]
[1768392463310,3.26935591,144.21,144.15,3.01521103]
[1768392464201,3.26935591,144.21,144.12,3.01521103]
[1768392464408,1.72511566,144.22,144.1,6.2486]
[1768392464409,1.72511566,144.16,144.1,6.2486]
[1768392464609,84.86935591,144.17,144.1,3.01521103]
[1768392464905,81.6,144.17,144.11,3.01521103]
[1768392465110,81.6,144.17,144.12,6.2476]
[1768392465910,92.83917157,144.2,144.12,6.2476]
[1768392467818,3.26935591,144.19,144.12,6.2476]
[1768392468910,9.51435591,144.19,144.12,6.2476]
[1768392469116,1.72511566,144.18,144.12,6.2476]
[1768392471110,1.72511566,144.18,144.13,6.2474]
[1768392471817,4.99447157,144.19,144.13,6.2474]
[1768392472314,46.67512429,144.2,144.13,3.01521103]
[1768392472514,1.72511566,144.22,144.13,3.01521103]
[1768392473317,81.6,144.23,144.13,3.01521103]
[1768392473523,1.72511566,144.22,144.13,3.01521103]
[1768392473818,1.72511566,144.22,144.16,6.2461]
[1768392474020,1.72511566,144.22,144.13,3.01521103]
[1768392474220,1.72511566,144.22,144.12,1.72511566]
[1768392474221,0.13466876,144.19,144.11,3.01521103]
[1768392474421,0.13466876,144.19,144.11,4.74032669]
[1768392474620,0.13466876,144.19,144.12,3.01521103]
[1768392476220,81.73466876,144.23,144.14,3.01521103]
[1768392476425,1.72511566,144.22,144.14,3.01521103]
[1768392476923,6.244,144.21,144.14,3.01521103]
[1768392477631,87.97806876,144.23,144.14,9.26211103]
[1768392477920,1.72511566,144.22,144.15,3.01521103]
[1768392478731,7.96861566,144.22,144.15,3.01521103]
[1768392478921,1.85978442,144.22,144.15,3.01521103]
[1768392479224,0.13466876,144.21,144.13,3.01521103]
[1768392479526,1.72511566,144.2,144.13,3.01521103]
[1768392479929,1.72511566,144.2,144.13,9.26261103]
[1768392480722,0.13466876,144.19,144.12,6.2478]
[1768392480926,0.13466876,144.19,144.11,3.01521103]
[1768392481330,1.72511566,144.18,144.11,3.01521103]
[1768392481827,1.72511566,144.18,144.11,9.26351103]
[1768392482220,178.719,144.23,144.11,3.01521103]
[1768392482422,178.719,144.23,144.13,3.01521103]
[1768392482423,1.72511566,144.2,144.13,3.01521103]
[1768392482927,7.96961566,144.2,144.13,9.26261103]
[1768392484028,6.2445,144.2,144.13,9.26261103]
[1768392484330,7.96961566,144.2,144.13,9.26261103]
[1768392485220,1.72511566,144.2,144.13,3.01521103]
[1768392485735,1.85978442,144.22,144.13,3.01521103]
[1768392485925,1.85978442,144.22,144.15,6.2465]
[1768392486837,6.37826876,144.22,144.16,3.22198884]
[1768392490332,83.32511566,144.23,144.16,3.22198884]
[1768392490532,0.13137131,144.22,144.16,3.22198884]
[1768392490832,0.13137131,144.2,144.13,3.22198884]
[1768392491033,0.13137131,144.19,144.13,3.22198884]
[1768392492944,7.96951566,144.2,144.13,3.22198884]
[1768392493440,6.2444,144.2,144.13,3.22198884]
[1768392495639,6.2449,144.19,144.13,4.9471045]
[1768392495839,6.2449,144.19,144.14,3.22198884]
[1768392498244,8.10078697,144.21,144.14,3.22198884]
[1768392498446,1.85648697,144.21,144.14,3.22198884]
[1768392499250,0.13137131,144.2,144.14,3.22198884]
[1768392499747,8.10098697,144.2,144.14,3.22198884]
[1768392500548,6.37587131,144.2,144.14,3.22198884]
[1768392500950,0.13137131,144.2,144.14,3.22198884]
[1768392501953,0.13137131,144.2,144.14,9.46898884]
[1768392502249,0.13193264,144.22,144.15,3.09604452]
[1768392503049,0.13193264,144.22,144.17,6.2457]
[1768392504742,0.13193264,144.22,144.15,4.82116018]
[1768392505752,0.13193264,144.22,144.16,6.246]
[1768392505952,0.13193264,144.21,144.15,3.09604452]
[1768392507749,6.37593264,144.21,144.15,3.09604452]
[1768392510854,0.13193264,144.21,144.15,9.34254452]
[1768392517758,6.37593264,144.21,144.15,3.09604452]
[1768392519860,0.13220566,144.2,144.13,3.13504179]
[1768392520063,0.13220566,144.18,144.11,3.13504179]
[1768392520657,0.13220566,144.2,144.12,3.13504179]
[1768392521456,6.37700566,144.19,144.13,6.2474]
[1768392521660,6.37700566,144.19,144.12,3.13504179]
[1768392522757,6.37700566,144.19,144.12,9.38284179]
[1768392523561,6.37700566,144.19,144.13,9.38244179]
[1768392524662,6.37700566,144.19,144.13,3.13504179]
[1768392525165,6.37640566,144.21,144.13,3.13504179]
[1768392525863,6.2445,144.2,144.13,3.13504179]
[1768392528169,6.2449,144.19,144.13,3.13504179]
[1768392537078,6.2453,144.18,144.13,3.13504179]
[1768392537480,0.13220566,144.18,144.13,3.13504179]
[1768392538181,6.2457,144.17,144.13,3.13504179]
[1768392539381,6.2457,144.17,144.11,6.2483]
[1768392539581,6.2457,144.17,144.11,9.38334179]
[1768392539985,0.13220566,144.17,144.11,3.13504179]
[1768392540287,0.13220566,144.17,144.09,3.13504179]
[1768392541892,6.2461,144.16,144.1,3.13504179]
[1768392543880,6.2456,144.18,144.1,3.13504179]
[1768392544085,0.13220566,144.19,144.1,3.13504179]
[1768392544883,0.13220566,144.18,144.1,3.13504179]
[1768392545786,6.2457,144.17,144.1,3.13504179]
[1768392546488,6.37863465,144.17,144.1,3.13504179]
[1768392548092,6.37963465,144.15,144.08,9.39898166]
[1768392548284,0.13293465,144.14,144.08,3.14938166]
[1768392548982,0.13293465,144.13,144.05,3.14938166]
[1768392549993,0.13293465,144.15,144.05,3.14938166]
[1768392550794,6.37963465,144.15,144.07,9.39928166]
[1768392551094,81.75293465,144.17,144.08,3.14938166]
[1768392552896,87.99883465,144.17,144.09,9.39838166]
[1768392553583,87.99883465,144.17,144.1,3.14938166]
[1768392554695,6.2462,144.16,144.1,3.14938166]
[1768392554898,6.37913465,144.16,144.1,3.14938166]
[1768392563086,0.13655633,144.15,144.1,3.14938166]
[1768392563287,0.13655633,144.14,144.08,3.27839308]
[1768392564600,0.13655633,144.16,144.08,9.52789308]
[1768392564799,0.13655633,144.16,144.09,3.27839308]
[1768392565803,6.38275633,144.16,144.09,3.27839308]
[1768392566798,0.13655633,144.15,144.09,3.27839308]
[1768392567203,6.38315633,144.15,144.09,3.27839308]
[1768392568201,88.00235633,144.17,144.1,3.27839308]
[1768392570598,81.75655633,144.17,144.11,3.27839308]
[1768392570802,0.13655633,144.19,144.11,3.27839308]
[1768392571005,0.13655633,144.21,144.12,3.27839308]
[1768392572805,6.38085633,144.21,144.13,9.52569308]
[1768392573111,0.13655633,144.21,144.14,3.27839308]
[1768392573307,1.86206895,144.21,144.14,3.27839308]
[1768392573709,0.13655633,144.21,144.14,3.27839308]
[1768392574008,1.86206895,144.21,144.14,3.27839308]
[1768392574203,6.2444,144.2,144.14,9.52529308]
[1768392575108,0.13655633,144.21,144.15,3.27839308]
[1768392575596,0.13655633,144.21,144.15,9.52489308]
[1768392575996,0.13655633,144.21,144.15,3.27839308]
[1768392576200,6.38065633,144.21,144.15,3.27839308]
[1768392576607,8.10616895,144.21,144.15,3.27839308]
[1768392580022,6.38065633,144.21,144.15,3.27839308]
[1768392580210,8.10616895,144.21,144.15,3.27839308]
[1768392581014,6.2445,144.2,144.15,3.27839308]
[1768392582220,0.05186921,144.19,144.15,3.27839308]
[1768392582523,0.05186921,144.19,144.16,0.04569558]
[1768392583027,0.05186921,144.19,144.16,3.33020136]
[1768392587429,0.05186921,144.19,144.14,3.28450578]
[1768392587627,6.29666921,144.19,144.14,3.28450578]
[1768392590132,0.05186921,144.19,144.14,3.28450578]
[1768392590332,0.05186921,144.19,144.15,0.04383986]
[1768392593839,0.05186921,144.19,144.15,3.32834564]
[1768392594029,81.64,144.22,144.15,3.32834564]
[1768392595832,87.8836,144.22,144.16,3.28450578]
[1768392596534,89.73844765,144.22,144.16,3.28450578]
[1768392597629,0.12933503,144.2,144.15,0.04383986]
[1768392598030,1.72551262,144.21,144.15,3.32834564]
[1768392598234,7.96951262,144.21,144.15,3.32834564]
[1768392600236,6.244,144.21,144.15,3.32834564]
[1768392602240,87.8837,144.22,144.16,5.0100184]
[1768392602438,87.8837,144.22,144.17,3.28450578]
[1768392604342,81.64,144.22,144.17,3.28450578]
[1768392604731,81.64,144.22,144.18,0.04494288]
[1768392606239,6.2432,144.23,144.18,3.02908774]
[1768392606543,97.0943,144.27,144.19,2.98414486]
[1768392606544,81.62,144.27,144.19,2.98414486]
[1768392606738,81.62,144.27,144.18,1.7704555]
[1768392606739,81.62,144.27,144.21,2.98414486]
[1768392607537,6.242,144.26,144.21,2.98414486]
[1768392608045,6.242,144.26,144.23,0.04993747]
[1768392608636,81.62,144.27,144.23,0.04993747]
[1768392610742,6.42380215,144.3,144.23,3.03408233]
[1768392610940,89.74931477,144.3,144.23,3.03408233]
[1768392613744,83.50881477,144.3,144.23,9.27708233]
[1768392614342,81.78330215,144.3,144.23,9.27708233]
[1768392614543,81.78330215,144.3,144.24,2.98414486]
[1768392614746,0.18330215,144.3,144.25,2.98414486]
[1768392614943,1.90881477,144.32,144.25,2.98414486]
[1768392615242,81.6,144.33,144.26,2.98414486]
[1768392615440,83.50881477,144.33,144.26,2.98414486]
[1768392615646,81.78330215,144.33,144.27,3.03287157]
[1768392615851,83.50881477,144.33,144.27,3.03287157]
[1768392616743,89.74761477,144.33,144.27,3.03287157]
[1768392616943,81.6,144.33,144.27,3.03287157]
[1768392617346,81.78330215,144.33,144.27,3.03287157]
[1768392617851,83.50881477,144.33,144.27,3.03287157]
[1768392618050,0.18330215,144.32,144.27,0.04872671]
[1768392618248,81.78330215,144.33,144.27,3.03287157]
[1768392618450,1.90881477,144.33,144.27,3.03287157]
[1768392618747,81.58,144.35,144.28,2.98414486]
[1768392618952,0.18330215,144.36,144.28,2.98414486]
[1768392619149,1.72551262,144.37,144.29,2.98414486]
[1768392619642,1.72551262,144.37,144.31,0.0514959]
[1768392619846,1.72551262,144.37,144.31,9.49871436]
[1768392620144,1.90446225,144.37,144.31,3.25921436]
[1768392620349,1.72551262,144.35,144.31,0.0514959]
[1768392620852,1.90446225,144.35,144.31,0.0514959]
[1768392622058,1.90446225,144.35,144.29,3.20771846]
[1768392622059,0.04678255,144.34,144.29,3.20771846]
[1768392622853,1.77229517,144.34,144.29,3.20771846]
[1768392623453,1.77229517,144.34,144.3,0.05168994]
[1768392626453,0.04678255,144.34,144.3,0.05168994]
[1768392626652,1.77229517,144.34,144.3,0.05168994]
[1768392626957,0.04678255,144.34,144.3,0.05168994]
[1768392627151,1.77229517,144.34,144.3,0.05168994]
[1768392628060,1.72551262,144.32,144.26,3.20771846]
[1768392628757,1.72551262,144.32,144.26,9.44911846]
[1768392628955,1.90446225,144.32,144.24,3.20771846]
[1768392629160,0.17894963,144.32,144.24,3.20771846]
[1768392629454,0.04767748,144.3,144.24,3.20771846]
[1768392629957,0.04767748,144.3,144.25,9.44991846]
[1768392630854,0.04767748,144.3,144.25,3.20771846]
[1768392631051,0.04767748,144.3,144.26,6.2417]
[1768392631762,0.22662711,144.3,144.24,7.96781262]
[1768392631954,1.95213973,144.3,144.24,6.2423]
[1768392632657,0.22662711,144.3,144.24,6.2423]
[1768392633959,0.22662711,144.3,144.25,6.2421]
[1768392635363,0.22662711,144.3,144.23,9.45041846]
[1768392635758,0.18122328,144.29,144.23,9.45041846]
[1768392635961,0.18122328,144.29,144.23,6.2427]
[1768392636354,0.18122328,144.29,144.21,3.08818071]
[1768392637161,97.0519,144.33,144.24,3.13253678]
[1768392637162,0.18122328,144.33,144.24,3.13253678]
[1768392637564,0.18122328,144.33,144.24,3.08818071]
[1768392638765,0.18122328,144.32,144.25,6.2422]
[1768392638959,0.18122328,144.32,144.25,3.08818071]
[1768392639166,81.56,144.34,144.25,3.08818071]
[1768392639364,0.18122328,144.33,144.27,6.2413]
[1768392640965,0.18122328,144.33,144.25,9.32998071]
[1768392640966,6.42002328,144.33,144.25,9.32998071]
[1768392641264,6.42002328,144.33,144.26,3.08818071]
[1768392642166,0.18122328,144.33,144.27,9.32948071]
[1768392643367,0.18122328,144.33,144.27,3.08818071]
[1768392644263,81.56,144.34,144.27,3.08818071]
[1768392644668,0.18122328,144.36,144.28,3.08818071]
[1768392646771,2.69206714,144.37,144.28,3.08818071]
[1768392646772,6.2384,144.34,144.28,3.08818071]
[1768392647763,0.04505026,144.32,144.3,0.04551198]
[1768392649858,0.04505026,144.32,144.27,6.2413]
[1768392650170,0.04505026,144.32,144.26,3.08818071]
[1768392650778,0.04505026,144.32,144.26,9.32998071]
[1768392651974,6.28435026,144.32,144.26,9.32998071]
[1768392653872,6.28435026,144.32,144.26,3.08818071]
[1768392657179,6.2397,144.31,144.26,3.08818071]
[1768392658483,0.22556273,144.32,144.26,3.08818071]
[1768392659578,6.46496273,144.32,144.26,3.08818071]
[1768392661285,6.28445026,144.32,144.26,3.08818071]
[1768392661884,0.22556273,144.32,144.24,3.14425622]
[1768392663289,6.2401,144.3,144.25,3.14425622]
[1768392664089,0.0439905,144.29,144.25,3.14425622]
[1768392666187,6.2396,144.32,144.27,3.22957042]
[1768392667489,0.18581653,144.34,144.27,9.47087042]
[1768392667685,0.22980703,144.36,144.28,3.22957042]
[1768392668292,6.2384,144.34,144.28,3.22957042]
[1768392669391,6.2388,144.33,144.28,3.22957042]
[1768392669891,0.22980703,144.33,144.26,3.22957042]
[1768392670490,6.2392,144.32,144.26,3.22957042]
[1768392672786,6.46860703,144.33,144.27,3.22957042]
[1768392673185,6.2381,144.35,144.28,3.22957042]
[1768392673692,0.22980703,144.36,144.28,3.22957042]
[1768392674492,6.2379,144.35,144.29,3.22957042]
[1768392676799,6.2374,144.37,144.3,3.22957042]
[1768392677297,6.2374,144.37,144.3,9.46957042]
[1768392678599,6.46720703,144.37,144.3,9.46957042]
[1768392678802,6.46730703,144.36,144.3,3.22957042]
[1768392679397,0.22980703,144.35,144.29,6.2404]
[1768392679698,0.22980703,144.34,144.28,3.22957042]
[1768392680598,0.22980703,144.34,144.28,9.47047042]
[1768392682704,6.238,144.35,144.29,3.05900995]
[1768392683202,6.46352279,144.35,144.29,3.05900995]
[1768392687202,6.238,144.35,144.29,3.05900995]
[1768392687791,0.22552279,144.35,144.29,3.05900995]
[1768392687998,0.22552279,144.35,144.27,3.05900995]
[1768392688698,6.239,144.33,144.28,3.05900995]
[1768392689491,6.2392,144.32,144.26,9.30080995]
[1768392689691,6.2392,144.32,144.27,3.05900995]
[1768392690399,0.22552279,144.34,144.28,3.05900995]
[1768392690593,0.22552279,144.36,144.28,3.05900995]
[1768392691296,81.78552279,144.38,144.29,3.05900995]
[1768392691500,0.22552279,144.37,144.29,3.05900995]
[1768392692804,6.2375,144.36,144.3,3.05900995]
[1768392693300,6.2382,144.35,144.3,3.05900995]
[1768392703312,8.18494913,144.37,144.3,3.05900995]
[1768392704413,6.2375,144.37,144.31,3.05852607]
[1768392707315,6.46112569,144.37,144.31,3.05852607]
[1768392708417,8.18305203,144.37,144.31,3.05852607]
[1768392708913,6.2375,144.37,144.31,3.05852607]
[1768392711221,81.56,144.38,144.32,3.05852607]
[1768392711923,81.78362569,144.38,144.32,3.05852607]
[1768392712817,88.02022569,144.38,144.32,3.05852607]
[1768392714314,87.7966,144.38,144.32,3.05852607]
[1768392715222,81.56,144.38,144.32,3.05852607]
[1768392717124,0.22362569,144.41,144.34,3.05852607]
[1768392717537,1.94555203,144.41,144.34,3.05852607]
[1768392718121,0.22362569,144.4,144.34,3.05852607]
[1768392719432,87.795,144.42,144.36,3.05852607]
[1768392719433,81.78362569,144.42,144.36,3.05852607]
[1768392720630,0.22362569,144.46,144.39,4.78045241]
[1768392721139,0.22362569,144.43,144.37,3.05852607]
[1768392721631,1.94555203,144.42,144.35,3.05852607]
[1768392722222,1.94555203,144.4,144.33,3.05852607]
[1768392722620,0.22362569,144.4,144.33,3.05852607]
[1768392723030,0.22362569,144.4,144.35,0.04522922]
[1768392723536,6.45942569,144.4,144.33,3.05852607]
[1768392723736,8.18135203,144.4,144.33,3.05852607]
[1768392724033,0.04872532,144.39,144.33,3.05852607]
[1768392725032,0.27235101,144.39,144.31,3.05852607]
[1768392725233,1.94710198,144.38,144.31,3.05852607]
[1768392725828,0.04675769,144.36,144.31,3.05852607]
[1768392727240,0.04675769,144.36,144.32,0.05135794]
[1768392728335,1.72192634,144.35,144.29,3.14909291]
[1768392728641,1.94710198,144.35,144.29,3.14909291]
[1768392729130,0.22517564,144.35,144.29,3.14909291]
[1768392730334,0.22517564,144.35,144.28,6.2406]
[1768392730538,0.22517564,144.35,144.28,9.38969291]
[1768392731337,0.047609,144.33,144.28,9.38969291]
[1768392732132,0.047609,144.33,144.29,3.14909291]
[1768392732635,0.047609,144.33,144.29,9.38959291]
[1768392733232,6.2376,144.36,144.3,3.14909291]
[1768392733636,6.46277564,144.36,144.3,3.14909291]
[1768392734541,0.04377085,144.34,144.3,3.14909291]
[1768392734942,0.04377085,144.34,144.28,9.38999291]
[1768392736840,0.26894649,144.34,144.28,3.14909291]
[1768392737032,6.28237085,144.34,144.26,3.14909291]
[1768392737228,8.00429719,144.34,144.26,3.14909291]
[1768392737447,7.96052634,144.34,144.26,3.14909291]
[1768392737641,6.2386,144.34,144.26,3.14909291]
[1768392737845,0.05259425,144.31,144.26,3.14909291]
[1768392738038,0.05259425,144.31,144.26,4.87101925]
[1768392738345,0.05259425,144.31,144.27,3.14909291]
[1768392738841,0.05259425,144.31,144.27,9.39039291]
[1768392739842,0.05259425,144.31,144.25,3.18027344]
[1768392740338,0.22673524,144.32,144.25,3.18027344]
[1768392740738,0.04502735,144.29,144.25,3.18027344]
[1768392741846,0.04502735,144.29,144.25,9.42247344]
[1768392742838,0.22673524,144.32,144.25,9.42247344]
[1768392745150,0.22673524,144.32,144.25,11.14439978]
[1768392745548,7.96072634,144.33,144.25,11.14439978]
[1768392745549,6.2388,144.33,144.27,3.18027344]
[1768392746651,6.2388,144.33,144.27,9.42157344]
[1768392746853,6.46553524,144.33,144.27,9.42157344]
[1768392747051,7.96022634,144.34,144.27,9.42157344]
[1768392747254,8.18696158,144.34,144.27,9.42157344]
[1768392749849,6.46553524,144.33,144.27,9.42157344]
[1768392750043,1.94866158,144.33,144.27,3.18027344]
[1768392751753,0.22673524,144.33,144.27,11.14339978]
[1768392753354,0.22673524,144.35,144.28,1.72192634]
[1768392753655,0.22673524,144.35,144.29,4.90219978]
[1768392753855,0.22673524,144.35,144.31,6.2396]
[1768392756145,6.4640166,144.37,144.31,6.2396]
[1768392758549,6.2371,144.37,144.29,9.42037344]
[1768392758756,0.2269166,144.36,144.29,3.18027344]
[1768392759356,0.2269166,144.36,144.3,6.24]
[1768392763070,6.4644166,144.36,144.3,6.24]
[1768392764665,6.4644166,144.36,144.29,3.18027344]
[1768392764870,6.4644166,144.36,144.29,9.42077344]
[1768392766274,6.4644166,144.36,144.3,6.2401]
[1768392767166,6.4644166,144.36,144.3,9.29973826]
[1768392768674,6.4644166,144.36,144.3,3.05963826]
[1768392769371,0.2269166,144.35,144.3,3.05963826]
[1768392771467,6.2371,144.37,144.31,9.29923826]
[1768392771871,6.4640166,144.37,144.31,9.29923826]
[1768392772269,81.54,144.38,144.31,3.05963826]
[1768392772270,6.4645166,144.36,144.31,3.05963826]
[1768392772576,6.4645166,144.36,144.29,9.29973826]
[1768392772878,6.238,144.35,144.29,9.29973826]
[1768392780484,0.2269166,144.36,144.3,3.05963826]
[1768392781184,6.4644166,144.36,144.3,9.29973826]
[1768392781679,6.2375,144.36,144.31,3.05963826]
[1768392785285,0.22585374,144.34,144.25,3.00740468]
[1768392785792,0.22585374,144.34,144.27,3.00740468]
[1768392786193,6.2388,144.33,144.27,3.00740468]
[1768392787895,6.2388,144.33,144.27,9.24880468]
[1768392788496,6.2388,144.33,144.28,3.00740468]
[1768392790497,6.46415374,144.35,144.28,3.00740468]
[1768392791301,6.2386,144.34,144.28,3.00740468]
[1768392791492,6.2386,144.34,144.29,3.00740468]